[Event "Titled Tuesday Blitz January 03 Late 2023"]
[White "UnknownMagician"]
[Black "Kulkarni, Rakesh"]
[BlackFideId "5037077"]
[WhiteElo "2670"]
[BlackElo "2321"]
[Result "0-1"]
[Round "03"]
[TimeControl "180+2"]
[Date "2023.01.03"]
[WhiteClock "0:00:04"]
[BlackClock "0:00:17"]

1. c4 {[%clk 0:03:00]}  e5 {[%clk 0:02:56]} 2. Nc3 {[%clk 0:03:00]}  Nc6 {[%clk 0:02:52]} 3. g3 {[%clk 0:03:00]}  Nf6 {[%clk 0:02:47]} 4. Bg2 {[%clk 0:02:59]}  Bc5 {[%clk 0:02:47]} 5. e3 {[%clk 0:02:56]}  O-O {[%clk 0:02:46]} 6. Nge2 {[%clk 0:02:55]}  a5 {[%clk 0:02:44]} 7. O-O {[%clk 0:02:54]}  Re8 {[%clk 0:02:43]} 8. d4 {[%clk 0:02:49]}  exd4 {[%clk 0:02:43]} 9. exd4 {[%clk 0:02:50]}  Bf8 {[%clk 0:02:42]} 10. b3 {[%clk 0:02:37]}  Ne7 {[%clk 0:02:30]} 11. d5 {[%clk 0:02:34]}  d6 {[%clk 0:02:29]} 12. Nd4 {[%clk 0:02:32]}  Ng6 {[%clk 0:02:30]} 13. Qc2 {[%clk 0:02:29]}  Bg4 {[%clk 0:01:49]} 14. h3 {[%clk 0:02:26]}  Bd7 {[%clk 0:01:45]} 15. Nf5 {[%clk 0:02:24]}  a4 {[%clk 0:01:28]} 16. Be3 {[%clk 0:02:15]}  Qc8 {[%clk 0:01:16]} 17. g4 {[%clk 0:02:10]}  Bxf5 {[%clk 0:01:07]} 18. Qxf5 {[%clk 0:02:09]}  Qxf5 {[%clk 0:01:05]} 19. gxf5 {[%clk 0:02:10]}  Nh4 {[%clk 0:01:05]} 20. Nxa4 {[%clk 0:02:07]}  Nxf5 {[%clk 0:01:00]} 21. Bf4 {[%clk 0:01:56]}  b6 {[%clk 0:00:53]} 22. Nc3 {[%clk 0:01:54]}  g6 {[%clk 0:00:53]} 23. Nb5 {[%clk 0:01:42]}  Rac8 {[%clk 0:00:42]} 24. Rae1 {[%clk 0:01:41]}  Nh4 {[%clk 0:00:32]} 25. Bh1 {[%clk 0:01:38]}  Bg7 {[%clk 0:00:31]} 26. Rxe8+ {[%clk 0:01:30]}  Nxe8 {[%clk 0:00:32]} 27. Re1 {[%clk 0:01:31]}  f5 {[%clk 0:00:26]} 28. Re7 {[%clk 0:01:28]}  Bf6 {[%clk 0:00:22]} 29. Rd7 {[%clk 0:01:26]}  g5 {[%clk 0:00:22]} 30. Be3 {[%clk 0:01:12]}  Ng6 {[%clk 0:00:22]} 31. h4 {[%clk 0:00:38]}  h6 {[%clk 0:00:21]} 32. hxg5 {[%clk 0:00:34]}  hxg5 {[%clk 0:00:22]} 33. Kf1 {[%clk 0:00:23]}  Nf8 {[%clk 0:00:22]} 34. Rxc7 {[%clk 0:00:19]}  Nxc7 {[%clk 0:00:22]} 35. Nxd6 {[%clk 0:00:18]}  Ra8 {[%clk 0:00:21]} 36. Bxb6 {[%clk 0:00:16]}  Rxa2 {[%clk 0:00:19]} 37. Bxc7 {[%clk 0:00:15]}  Ra1+ {[%clk 0:00:19]} 38. Kg2 {[%clk 0:00:14]}  Ng6 {[%clk 0:00:20]} 39. Nxf5 {[%clk 0:00:11]}  Rb1 {[%clk 0:00:20]} 40. c5 {[%clk 0:00:09]}  Rxb3 {[%clk 0:00:19]} 41. d6 {[%clk 0:00:10]}  Nf4+ {[%clk 0:00:20]} 42. Kh2 {[%clk 0:00:08]}  Be5 {[%clk 0:00:20]} 43. Ne3 {[%clk 0:00:04]}  Kf8 {[%clk 0:00:18]} 44. Bc6 {[%clk 0:00:02]}  Rb2 {[%clk 0:00:16]} 45. Kg1 {[%clk 0:00:01]}  Rb1+ {[%clk 0:00:16]} 46. Kh2 {[%clk 0:00:01]}  Rb2 {[%clk 0:00:17]} 47. Kg1 {[%clk 0:00:01]}  Rc2 {[%clk 0:00:18]} 48. Kf1 {[%clk 0:00:02]}  Rxc5 {[%clk 0:00:18]} 49. Nd1 {[%clk 0:00:03]}  Rxc6 {[%clk 0:00:18]} 50. Ke1 {[%clk 0:00:04]}  Bxd6 {[%clk 0:00:17]} 0-1


[Site "https://www.chess.com"]

[Event "Titled Tuesday Blitz January 03 Late 2023"]
[White "Martins, Bruno Andre Leite"]
[Black "Domingo Nunez, Alejandro"]
[WhiteFideId "1942255"]
[BlackFideId "22245561"]
[WhiteElo "2348"]
[BlackElo "2338"]
[Result "0-1"]
[Round "03"]
[TimeControl "180+2"]
[Date "2023.01.03"]
[WhiteClock "0:00:02"]
[BlackClock "0:00:02"]

1. e4 {[%clk 0:03:00]}  g6 {[%clk 0:03:00]} 2. d4 {[%clk 0:02:50]}  Bg7 {[%clk 0:03:00]} 3. Nc3 {[%clk 0:02:49]}  c6 {[%clk 0:03:01]} 4. Nf3 {[%clk 0:02:45]}  d5 {[%clk 0:03:00]} 5. h3 {[%clk 0:02:46]}  dxe4 {[%clk 0:03:00]} 6. Nxe4 {[%clk 0:02:47]}  Nf6 {[%clk 0:03:00]} 7. Nxf6+ {[%clk 0:02:47]}  exf6 {[%clk 0:03:01]} 8. Bc4 {[%clk 0:02:47]}  O-O {[%clk 0:03:02]} 9. O-O {[%clk 0:02:47]}  a5 {[%clk 0:03:03]} 10. a4 {[%clk 0:02:46]}  Na6 {[%clk 0:03:03]} 11. c3 {[%clk 0:02:47]}  Nc7 {[%clk 0:03:03]} 12. Bf4 {[%clk 0:02:47]}  Nd5 {[%clk 0:03:03]} 13. Bh2 {[%clk 0:02:47]}  Be6 {[%clk 0:03:03]} 14. Qb3 {[%clk 0:02:43]}  b6 {[%clk 0:02:51]} 15. Rfe1 {[%clk 0:02:40]}  Re8 {[%clk 0:02:50]} 16. Nd2 {[%clk 0:02:39]}  Bf8 {[%clk 0:02:39]} 17. Re2 {[%clk 0:02:26]}  Kg7 {[%clk 0:02:23]} 18. Rae1 {[%clk 0:02:25]}  h5 {[%clk 0:02:13]} 19. Qc2 {[%clk 0:02:08]}  Qd7 {[%clk 0:02:10]} 20. Bd3 {[%clk 0:02:00]}  b5 {[%clk 0:02:07]} 21. Ne4 {[%clk 0:01:48]}  b4 {[%clk 0:01:17]} 22. c4 {[%clk 0:01:13]}  b3 {[%clk 0:01:16]} 23. Qd2 {[%clk 0:00:48]}  Bb4 {[%clk 0:00:50]} 24. Qc1 {[%clk 0:00:31]}  Bxe1 {[%clk 0:00:48]} 25. cxd5 {[%clk 0:00:29]}  Qxd5 {[%clk 0:00:38]} 26. Qxe1 {[%clk 0:00:20]}  Bf5 {[%clk 0:00:35]} 27. Nxf6 {[%clk 0:00:17]}  Rxe2 {[%clk 0:00:30]} 28. Bxe2 {[%clk 0:00:15]}  Kxf6 {[%clk 0:00:28]} 29. Be5+ {[%clk 0:00:15]}  Ke7 {[%clk 0:00:26]} 30. Bf3 {[%clk 0:00:15]}  Qe6 {[%clk 0:00:26]} 31. Qc3 {[%clk 0:00:14]}  Rc8 {[%clk 0:00:18]} 32. Qc5+ {[%clk 0:00:14]}  Ke8 {[%clk 0:00:18]} 33. Qxa5 {[%clk 0:00:12]}  Qc4 {[%clk 0:00:10]} 34. Qa7 {[%clk 0:00:10]}  Bd7 {[%clk 0:00:07]} 35. Kh2 {[%clk 0:00:05]}  Qc2 {[%clk 0:00:05]} 36. Bf6 {[%clk 0:00:05]}  Qc1 {[%clk 0:00:04]} 37. Be5 {[%clk 0:00:04]}  f6 {[%clk 0:00:04]} 38. Bd6 {[%clk 0:00:03]}  Qxb2 {[%clk 0:00:04]} 39. Qc5 {[%clk 0:00:03]}  Qc2 {[%clk 0:00:03]} 40. Qa5 {[%clk 0:00:03]}  Qf5 {[%clk 0:00:03]} 41. Qb4 {[%clk 0:00:02]}  Qc2 {[%clk 0:00:02]} 42. d5 {[%clk 0:00:01]}  b2 {[%clk 0:00:01]} 43. dxc6 {[%clk 0:00:01]}  b1=Q {[%clk 0:00:01]} 44. cxd7+ {[%clk 0:00:01]}  Kxd7 {[%clk 0:00:02]} 45. Qd4 {[%clk 0:00:01]}  Qd3 {[%clk 0:00:01]} 46. Qxf6 {[%clk 0:00:02]}  Qxd6+ {[%clk 0:00:01]} 47. Qxd6+ {[%clk 0:00:02]}  Kxd6 {[%clk 0:00:02]} 0-1


[Site "https://www.chess.com"]

[Event "Titled Tuesday Blitz January 03 Late 2023"]
[White "Haydon, David L"]
[Black "Blanco Acevedo, Cristobal Jose"]
[WhiteFideId "415405"]
[BlackFideId "3900525"]
[WhiteElo "2253"]
[BlackElo "2310"]
[Result "0-1"]
[Round "03"]
[TimeControl "180+2"]
[Date "2023.01.03"]
[WhiteClock "0:01:14"]
[BlackClock "0:01:28"]

1. e4 {[%clk 0:02:58]}  c5 {[%clk 0:02:59]} 2. Nf3 {[%clk 0:02:56]}  Nc6 {[%clk 0:02:59]} 3. Bb5 {[%clk 0:02:56]}  e6 {[%clk 0:02:59]} 4. Bxc6 {[%clk 0:02:55]}  bxc6 {[%clk 0:02:59]} 5. O-O {[%clk 0:02:56]}  Ne7 {[%clk 0:02:59]} 6. d3 {[%clk 0:02:56]}  Ng6 {[%clk 0:02:57]} 7. Nc3 {[%clk 0:02:55]}  e5 {[%clk 0:02:55]} 8. Re1 {[%clk 0:02:54]}  d6 {[%clk 0:02:55]} 9. h3 {[%clk 0:02:54]}  Be7 {[%clk 0:02:54]} 10. a3 {[%clk 0:02:54]}  a5 {[%clk 0:02:50]} 11. Rb1 {[%clk 0:02:48]}  O-O {[%clk 0:02:46]} 12. Be3 {[%clk 0:02:42]}  f5 {[%clk 0:02:44]} 13. exf5 {[%clk 0:02:39]}  Bxf5 {[%clk 0:02:44]} 14. Qe2 {[%clk 0:02:18]}  Qd7 {[%clk 0:02:35]} 15. Ne4 {[%clk 0:02:13]}  h6 {[%clk 0:02:24]} 16. Ng3 {[%clk 0:02:10]}  Be6 {[%clk 0:02:15]} 17. d4 {[%clk 0:02:09]}  cxd4 {[%clk 0:02:06]} 18. Bxd4 {[%clk 0:02:07]}  Nf4 {[%clk 0:02:05]} 19. Qd2 {[%clk 0:01:59]}  exd4 {[%clk 0:02:02]} 20. Nxd4 {[%clk 0:01:58]}  Bd5 {[%clk 0:02:00]} 21. f3 {[%clk 0:01:41]}  Bh4 {[%clk 0:01:59]} 22. Ndf5 {[%clk 0:01:30]}  Rxf5 {[%clk 0:01:55]} 23. Nxf5 {[%clk 0:01:29]}  Qxf5 {[%clk 0:01:52]} 24. Re3 {[%clk 0:01:20]}  Qg5 {[%clk 0:01:44]} 25. Kh1 {[%clk 0:01:18]}  Nxg2 {[%clk 0:01:36]} 26. Rd3 {[%clk 0:01:16]}  Qxd2 {[%clk 0:01:31]} 27. Rxd2 {[%clk 0:01:15]}  Nf4 {[%clk 0:01:29]} 28. Rxd5 {[%clk 0:01:14]}  Nxd5 {[%clk 0:01:28]} 0-1


[Site "https://www.chess.com"]

[Event "Titled Tuesday Blitz January 03 Late 2023"]
[White "Ibadov, Dashgyn"]
[Black "Abrahamyan, Tatev"]
[WhiteFideId "24107514"]
[BlackFideId "13301918"]
[WhiteElo "2391"]
[BlackElo "2294"]
[Result "0-1"]
[Round "03"]
[TimeControl "180+2"]
[Date "2023.01.03"]
[WhiteClock "0:01:25"]
[BlackClock "0:01:23"]

1. e4 {[%clk 0:03:00]}  e6 {[%clk 0:02:59]} 2. d4 {[%clk 0:03:00]}  d5 {[%clk 0:02:59]} 3. Nc3 {[%clk 0:03:01]}  Bb4 {[%clk 0:02:58]} 4. e5 {[%clk 0:03:00]}  Ne7 {[%clk 0:02:56]} 5. a3 {[%clk 0:03:00]}  Bxc3+ {[%clk 0:02:56]} 6. bxc3 {[%clk 0:03:01]}  c5 {[%clk 0:02:57]} 7. h4 {[%clk 0:03:01]}  Qa5 {[%clk 0:02:55]} 8. Bd2 {[%clk 0:03:01]}  Nbc6 {[%clk 0:02:55]} 9. h5 {[%clk 0:02:59]}  h6 {[%clk 0:02:55]} 10. Qg4 {[%clk 0:02:58]}  Nf5 {[%clk 0:02:45]} 11. Bd3 {[%clk 0:02:56]}  Rg8 {[%clk 0:02:44]} 12. Nf3 {[%clk 0:02:50]}  Qa4 {[%clk 0:02:41]} 13. Qf4 {[%clk 0:02:47]}  c4 {[%clk 0:02:33]} 14. Bxf5 {[%clk 0:02:44]}  exf5 {[%clk 0:02:32]} 15. Ra2 {[%clk 0:02:43]}  Be6 {[%clk 0:02:29]} 16. O-O {[%clk 0:02:29]}  O-O-O {[%clk 0:02:23]} 17. Nh4 {[%clk 0:02:19]}  Ne7 {[%clk 0:02:16]} 18. g3 {[%clk 0:02:19]}  Qd7 {[%clk 0:01:45]} 19. a4 {[%clk 0:02:16]}  g5 {[%clk 0:01:38]} 20. hxg6 {[%clk 0:02:15]}  Nxg6 {[%clk 0:01:39]} 21. Nxg6 {[%clk 0:02:14]}  fxg6 {[%clk 0:01:39]} 22. Qxh6 {[%clk 0:01:55]}  Rh8 {[%clk 0:01:38]} 23. Qxg6 {[%clk 0:01:26]}  f4 {[%clk 0:01:23]} 24. Qxe6 {[%clk 0:01:25]} 0-1


[Site "https://www.chess.com"]

[Event "Titled Tuesday Blitz January 03 Late 2023"]
[White "Ladan, Nicholas"]
[Black "Hsu, Li Yang"]
[WhiteFideId "30918855"]
[BlackFideId "5800080"]
[WhiteElo "2228"]
[BlackElo "2427"]
[Result "0-1"]
[Round "03"]
[TimeControl "180+2"]
[Date "2023.01.03"]
[WhiteClock "0:00:03"]
[BlackClock "0:00:16"]

1. d4 {[%clk 0:03:00]}  Nf6 {[%clk 0:02:58]} 2. Bf4 {[%clk 0:03:01]}  g6 {[%clk 0:02:56]} 3. Nc3 {[%clk 0:03:00]}  d5 {[%clk 0:02:56]} 4. e3 {[%clk 0:02:59]}  Bg7 {[%clk 0:02:55]} 5. h4 {[%clk 0:02:59]}  h5 {[%clk 0:02:54]} 6. Bd3 {[%clk 0:02:58]}  O-O {[%clk 0:02:52]} 7. Nf3 {[%clk 0:02:58]}  Bg4 {[%clk 0:02:51]} 8. Qd2 {[%clk 0:02:58]}  Bxf3 {[%clk 0:02:51]} 9. gxf3 {[%clk 0:02:59]}  c5 {[%clk 0:02:51]} 10. dxc5 {[%clk 0:02:56]}  Qa5 {[%clk 0:02:50]} 11. O-O-O {[%clk 0:02:36]}  Qxc5 {[%clk 0:02:43]} 12. Rhg1 {[%clk 0:02:33]}  Kh7 {[%clk 0:02:28]} 13. Rg5 {[%clk 0:02:18]}  Bh6 {[%clk 0:02:18]} 14. Rdg1 {[%clk 0:01:53]}  Bxg5 {[%clk 0:02:13]} 15. Rxg5 {[%clk 0:01:54]}  e6 {[%clk 0:01:56]} 16. Be5 {[%clk 0:01:49]}  Nbd7 {[%clk 0:01:56]} 17. Bd4 {[%clk 0:01:26]}  Qe7 {[%clk 0:01:54]} 18. f4 {[%clk 0:01:25]}  Rfc8 {[%clk 0:01:21]} 19. Qe2 {[%clk 0:01:23]}  Kg8 {[%clk 0:01:20]} 20. Nb1 {[%clk 0:00:26]}  Kf8 {[%clk 0:01:15]} 21. Nd2 {[%clk 0:00:26]}  Ke8 {[%clk 0:01:15]} 22. Nf3 {[%clk 0:00:22]}  Kd8 {[%clk 0:01:11]} 23. Ne5 {[%clk 0:00:18]}  Nxe5 {[%clk 0:01:04]} 24. fxe5 {[%clk 0:00:18]}  Nd7 {[%clk 0:01:04]} 25. f4 {[%clk 0:00:18]}  a6 {[%clk 0:00:58]} 26. e4 {[%clk 0:00:19]}  dxe4 {[%clk 0:00:50]} 27. Bxe4 {[%clk 0:00:12]}  Rc7 {[%clk 0:00:49]} 28. Bf2 {[%clk 0:00:08]}  Rac8 {[%clk 0:00:47]} 29. c3 {[%clk 0:00:06]}  Ke8 {[%clk 0:00:44]} 30. Rg3 {[%clk 0:00:06]}  Nc5 {[%clk 0:00:42]} 31. Bc2 {[%clk 0:00:05]}  Qd7 {[%clk 0:00:26]} 32. Bd4 {[%clk 0:00:05]}  Qc6 {[%clk 0:00:25]} 33. Qf3 {[%clk 0:00:03]}  Qxf3 {[%clk 0:00:24]} 34. Rxf3 {[%clk 0:00:03]}  b5 {[%clk 0:00:23]} 35. Kd2 {[%clk 0:00:03]}  Nd7 {[%clk 0:00:18]} 36. Rd3 {[%clk 0:00:02]}  b4 {[%clk 0:00:18]} 37. Bb3 {[%clk 0:00:02]}  bxc3+ {[%clk 0:00:17]} 38. bxc3 {[%clk 0:00:03]}  Nc5 {[%clk 0:00:17]} 39. Rg3 {[%clk 0:00:03]}  Ne4+ {[%clk 0:00:16]} 0-1


[Site "https://www.chess.com"]

[Event "Titled Tuesday Blitz January 03 Late 2023"]
[White "Popilski, Gil"]
[Black "Jovic, Stanoje"]
[WhiteFideId "2809060"]
[BlackFideId "905020"]
[WhiteElo "2443"]
[BlackElo "2075"]
[Result "1-0"]
[Round "03"]
[TimeControl "180+2"]
[Date "2023.01.03"]
[WhiteClock "0:00:07"]
[BlackClock "0:00:03"]

1. e4 {[%clk 0:03:00]}  c6 {[%clk 0:03:00]} 2. d4 {[%clk 0:02:59]}  d5 {[%clk 0:03:00]} 3. exd5 {[%clk 0:03:00]}  cxd5 {[%clk 0:02:59]} 4. c4 {[%clk 0:03:00]}  Nf6 {[%clk 0:02:59]} 5. Nc3 {[%clk 0:03:01]}  Nc6 {[%clk 0:02:58]} 6. Bg5 {[%clk 0:03:00]}  dxc4 {[%clk 0:02:57]} 7. Bxc4 {[%clk 0:02:59]}  e6 {[%clk 0:02:54]} 8. d5 {[%clk 0:02:37]}  exd5 {[%clk 0:02:54]} 9. Nxd5 {[%clk 0:02:38]}  Be7 {[%clk 0:02:43]} 10. Nxe7 {[%clk 0:02:30]}  Qxe7+ {[%clk 0:02:41]} 11. Qe2 {[%clk 0:02:28]}  Nd4 {[%clk 0:02:29]} 12. Qxe7+ {[%clk 0:02:24]}  Kxe7 {[%clk 0:02:29]} 13. O-O-O {[%clk 0:02:25]}  Be6 {[%clk 0:02:13]} 14. Bxe6 {[%clk 0:02:13]}  Nxe6 {[%clk 0:02:11]} 15. Bh4 {[%clk 0:02:07]}  Rac8+ {[%clk 0:02:10]} 16. Kb1 {[%clk 0:02:07]}  g5 {[%clk 0:02:07]} 17. Bg3 {[%clk 0:02:00]}  Ne4 {[%clk 0:02:06]} 18. Ne2 {[%clk 0:01:49]}  h5 {[%clk 0:02:01]} 19. f3 {[%clk 0:01:47]}  Nxg3 {[%clk 0:01:50]} 20. hxg3 {[%clk 0:01:44]}  Rcd8 {[%clk 0:01:40]} 21. Rxd8 {[%clk 0:01:41]}  Kxd8 {[%clk 0:01:39]} 22. Nc3 {[%clk 0:01:35]}  f5 {[%clk 0:01:31]} 23. Re1 {[%clk 0:01:32]}  Kd7 {[%clk 0:01:25]} 24. Re5 {[%clk 0:01:29]}  Rf8 {[%clk 0:01:19]} 25. Kc2 {[%clk 0:01:27]}  Nd4+ {[%clk 0:01:09]} 26. Kd3 {[%clk 0:01:26]}  Nc6 {[%clk 0:01:09]} 27. Rb5 {[%clk 0:01:23]}  b6 {[%clk 0:01:06]} 28. Nd5 {[%clk 0:01:16]}  Ke6 {[%clk 0:00:58]} 29. Ne3 {[%clk 0:01:10]}  Rd8+ {[%clk 0:00:57]} 30. Kc3 {[%clk 0:01:09]}  Nd4 {[%clk 0:00:55]} 31. Rb4 {[%clk 0:01:08]}  Ne2+ {[%clk 0:00:54]} 32. Kc2 {[%clk 0:01:07]}  Nd4+ {[%clk 0:00:52]} 33. Kb1 {[%clk 0:01:02]}  Ne2 {[%clk 0:00:47]} 34. g4 {[%clk 0:00:58]}  f4 {[%clk 0:00:42]} 35. Nf5 {[%clk 0:00:39]}  hxg4 {[%clk 0:00:41]} 36. fxg4 {[%clk 0:00:40]}  Kf6 {[%clk 0:00:35]} 37. Re4 {[%clk 0:00:31]}  Ng3 {[%clk 0:00:31]} 38. Nxg3 {[%clk 0:00:31]}  fxg3 {[%clk 0:00:31]} 39. Re3 {[%clk 0:00:31]}  Rd2 {[%clk 0:00:27]} 40. Rxg3 {[%clk 0:00:30]}  Ke6 {[%clk 0:00:25]} 41. Re3+ {[%clk 0:00:29]}  Kd5 {[%clk 0:00:22]} 42. Rf3 {[%clk 0:00:27]}  Rxg2 {[%clk 0:00:18]} 43. Rf5+ {[%clk 0:00:27]}  Ke4 {[%clk 0:00:18]} 44. Rxg5 {[%clk 0:00:28]}  Kf4 {[%clk 0:00:15]} 45. Rg7 {[%clk 0:00:27]}  Rxg4 {[%clk 0:00:14]} 46. Rxa7 {[%clk 0:00:19]}  Rg6 {[%clk 0:00:14]} 47. Re7 {[%clk 0:00:18]}  Rc6 {[%clk 0:00:12]} 48. a3 {[%clk 0:00:18]}  Kf5 {[%clk 0:00:12]} 49. Ka2 {[%clk 0:00:18]}  Kf6 {[%clk 0:00:12]} 50. Re3 {[%clk 0:00:18]}  Rd6 {[%clk 0:00:07]} 51. Kb3 {[%clk 0:00:18]}  Rd4 {[%clk 0:00:06]} 52. Re2 {[%clk 0:00:17]}  Rh4 {[%clk 0:00:05]} 53. Kc3 {[%clk 0:00:15]}  b5 {[%clk 0:00:04]} 54. Kb3 {[%clk 0:00:13]}  Rg4 {[%clk 0:00:04]} 55. Rc2 {[%clk 0:00:12]}  Ke6 {[%clk 0:00:03]} 56. Rc5 {[%clk 0:00:11]}  b4 {[%clk 0:00:04]} 57. a4 {[%clk 0:00:11]}  Kd6 {[%clk 0:00:04]} 58. Rc4 {[%clk 0:00:11]}  Rg2 {[%clk 0:00:03]} 59. Rxb4 {[%clk 0:00:10]}  Kc5 {[%clk 0:00:03]} 60. Rc4+ {[%clk 0:00:10]}  Kb6 {[%clk 0:00:03]} 61. Rc3 {[%clk 0:00:11]}  Rg4 {[%clk 0:00:03]} 62. Ka3 {[%clk 0:00:11]}  Ka5 {[%clk 0:00:03]} 63. b4+ {[%clk 0:00:10]}  Kb6 {[%clk 0:00:03]} 64. a5+ {[%clk 0:00:11]}  Kb5 {[%clk 0:00:03]} 65. Rc5+ {[%clk 0:00:11]}  Ka6 {[%clk 0:00:04]} 66. Ka4 {[%clk 0:00:11]}  Rg1 {[%clk 0:00:04]} 67. Rc6+ {[%clk 0:00:12]}  Kb7 {[%clk 0:00:04]} 68. Rh6 {[%clk 0:00:12]}  Rg5 {[%clk 0:00:03]} 69. a6+ {[%clk 0:00:10]}  Ka7 {[%clk 0:00:03]} 70. b5 {[%clk 0:00:10]}  Rg1 {[%clk 0:00:03]} 71. Rh7+ {[%clk 0:00:09]}  Kb6 {[%clk 0:00:03]} 72. Rb7+ {[%clk 0:00:09]}  Kc5 {[%clk 0:00:03]} 73. Kb3 {[%clk 0:00:08]}  Rb1+ {[%clk 0:00:03]} 74. Kc3 {[%clk 0:00:09]}  Rc1+ {[%clk 0:00:03]} 75. Kd3 {[%clk 0:00:09]}  Rd1+ {[%clk 0:00:03]} 76. Ke2 {[%clk 0:00:09]}  Ra1 {[%clk 0:00:03]} 77. a7 {[%clk 0:00:09]}  Ra3 {[%clk 0:00:03]} 78. b6 {[%clk 0:00:07]} 1-0


[Site "https://www.chess.com"]

[Event "Titled Tuesday Blitz January 03 Late 2023"]
[White "Gascon Del Nogal, Jose Rafael"]
[Black "Khandelwal, Ankush"]
[WhiteFideId "3902463"]
[BlackFideId "413470"]
[WhiteElo "2459"]
[BlackElo "2205"]
[Result "1-0"]
[Round "03"]
[TimeControl "180+2"]
[Date "2023.01.03"]
[WhiteClock "0:00:04"]
[BlackClock "0:00:06"]

1. e4 {[%clk 0:03:00]}  c5 {[%clk 0:02:57]} 2. Nf3 {[%clk 0:03:00]}  d6 {[%clk 0:02:58]} 3. d4 {[%clk 0:02:59]}  cxd4 {[%clk 0:02:59]} 4. Nxd4 {[%clk 0:03:00]}  Nf6 {[%clk 0:02:59]} 5. Nc3 {[%clk 0:03:00]}  a6 {[%clk 0:02:59]} 6. Nb3 {[%clk 0:03:00]}  e5 {[%clk 0:02:58]} 7. Bg5 {[%clk 0:02:59]}  Be6 {[%clk 0:02:44]} 8. f4 {[%clk 0:02:56]}  exf4 {[%clk 0:02:43]} 9. Qd2 {[%clk 0:02:56]}  Nbd7 {[%clk 0:02:28]} 10. O-O-O {[%clk 0:02:55]}  Be7 {[%clk 0:02:28]} 11. Bxf4 {[%clk 0:02:53]}  Ne5 {[%clk 0:02:28]} 12. Nd4 {[%clk 0:02:48]}  Qc7 {[%clk 0:02:15]} 13. Nf5 {[%clk 0:02:19]}  Bxf5 {[%clk 0:02:12]} 14. exf5 {[%clk 0:02:20]}  O-O {[%clk 0:02:04]} 15. Be2 {[%clk 0:02:17]}  b5 {[%clk 0:02:03]} 16. Kb1 {[%clk 0:02:10]}  Rfc8 {[%clk 0:01:58]} 17. Bxe5 {[%clk 0:01:57]}  dxe5 {[%clk 0:01:57]} 18. Bf3 {[%clk 0:01:58]}  Rab8 {[%clk 0:01:25]} 19. Nd5 {[%clk 0:01:51]}  Nxd5 {[%clk 0:01:23]} 20. Bxd5 {[%clk 0:01:51]}  a5 {[%clk 0:01:12]} 21. g4 {[%clk 0:01:37]}  a4 {[%clk 0:00:56]} 22. f6 {[%clk 0:00:50]}  Bxf6 {[%clk 0:00:39]} 23. Rhf1 {[%clk 0:00:48]}  a3 {[%clk 0:00:35]} 24. g5 {[%clk 0:00:34]}  Bxg5 {[%clk 0:00:07]} 25. Rxf7 {[%clk 0:00:32]}  Bxd2 {[%clk 0:00:05]} 26. Rxc7+ {[%clk 0:00:28]}  Kh8 {[%clk 0:00:06]} 27. Rxc8+ {[%clk 0:00:27]}  Rxc8 {[%clk 0:00:07]} 28. Rxd2 {[%clk 0:00:26]}  axb2 {[%clk 0:00:07]} 29. Kxb2 {[%clk 0:00:18]}  g5 {[%clk 0:00:04]} 30. c4 {[%clk 0:00:17]}  bxc4 {[%clk 0:00:03]} 31. Kc3 {[%clk 0:00:18]}  Kg7 {[%clk 0:00:03]} 32. a4 {[%clk 0:00:18]}  Kf6 {[%clk 0:00:04]} 33. a5 {[%clk 0:00:18]}  Rc5 {[%clk 0:00:04]} 34. a6 {[%clk 0:00:07]}  Ra5 {[%clk 0:00:03]} 35. Bb7 {[%clk 0:00:08]}  e4 {[%clk 0:00:03]} 36. Kxc4 {[%clk 0:00:06]}  Ke5 {[%clk 0:00:03]} 37. Kb4 {[%clk 0:00:06]}  Ra1 {[%clk 0:00:03]} 38. Kb3 {[%clk 0:00:06]}  e3 {[%clk 0:00:04]} 39. Re2 {[%clk 0:00:06]}  Kd4 {[%clk 0:00:05]} 40. Rg2 {[%clk 0:00:04]}  Kd3 {[%clk 0:00:04]} 41. Kb4 {[%clk 0:00:04]}  e2 {[%clk 0:00:05]} 42. Rg3+ {[%clk 0:00:04]}  Kd2 {[%clk 0:00:05]} 43. Rg2 {[%clk 0:00:04]}  Kd1 {[%clk 0:00:05]} 44. Bf3 {[%clk 0:00:03]}  Ra2 {[%clk 0:00:06]} 45. Bxe2+ {[%clk 0:00:03]}  Rxe2 {[%clk 0:00:05]} 46. Rxe2 {[%clk 0:00:04]}  Kxe2 {[%clk 0:00:06]} 47. a7 {[%clk 0:00:04]} 1-0


[Site "https://www.chess.com"]